[Event "*** Titled Tuesday Blitz"]
[Site "Chess.com"]
[Date "2021.02.16"]
[Round "6"]
[White "BabyBoss31"]
[Black "PlotnikovPavel"]
[Result "1-0"]
[WhiteElo "2338"]
[BlackElo "2467"]
[TimeControl "180+1"]
[EndTime "11:09:41 PST"]
[Termination "BabyBoss31 won by checkmate"]

1. d4 {[%clk 0:03:00.9]} 1... Nf6 {[%clk 0:02:54.6]} 2. Bg5 {[%clk 0:03:00.5]}
2... g6 {[%clk 0:02:55]} 3. Bxf6 {[%clk 0:02:58.7]} 3... exf6 {[%clk 0:02:54]}
4. e3 {[%clk 0:02:46.3]} 4... Bg7 {[%clk 0:02:51.2]} 5. g3 {[%clk 0:02:47]} 5...
f5 {[%clk 0:02:49.5]} 6. Bg2 {[%clk 0:02:40.2]} 6... O-O {[%clk 0:02:48.3]} 7.
Ne2 {[%clk 0:02:39.7]} 7... d6 {[%clk 0:02:45.5]} 8. O-O {[%clk 0:02:38.3]} 8...
c5 {[%clk 0:02:44.6]} 9. c4 {[%clk 0:02:32.7]} 9... Nc6 {[%clk 0:02:40.7]} 10.
Nbc3 {[%clk 0:02:30.5]} 10... a6 {[%clk 0:02:32.3]} 11. Qd2 {[%clk 0:02:17.8]}
11... Ne7 {[%clk 0:02:03.3]} 12. Rfd1 {[%clk 0:02:12.8]} 12... Be6 {[%clk
0:02:00.5]} 13. Bxb7 {[%clk 0:01:55]} 13... Ra7 {[%clk 0:02:00.1]} 14. Bf3
{[%clk 0:01:32.4]} 14... cxd4 {[%clk 0:01:51.2]} 15. Nxd4 {[%clk 0:01:30.8]}
15... Bxc4 {[%clk 0:01:51.1]} 16. b3 {[%clk 0:01:30.2]} 16... Be6 {[%clk
0:01:45]} 17. Nxe6 {[%clk 0:01:29.2]} 17... fxe6 {[%clk 0:01:45.9]} 18. Rac1
{[%clk 0:01:29.4]} 18... d5 {[%clk 0:01:45.6]} 19. Na4 {[%clk 0:01:27.5]} 19...
g5 {[%clk 0:01:40.7]} 20. Nc5 {[%clk 0:01:25.8]} 20... Qd6 {[%clk 0:01:39.2]}
21. e4 {[%clk 0:01:10.2]} 21... fxe4 {[%clk 0:01:38.2]} 22. Bxe4 {[%clk
0:01:05.5]} 22... Qe5 {[%clk 0:01:34.3]} 23. Bg2 {[%clk 0:00:59.8]} 23... g4
{[%clk 0:01:20.6]} 24. Rc2 {[%clk 0:00:19.1]} 24... Qf6 {[%clk 0:01:18.7]} 25.
Re1 {[%clk 0:00:18.1]} 25... Bh6 {[%clk 0:01:07.2]} 26. Qd3 {[%clk 0:00:16.6]}
26... e5 {[%clk 0:00:49.8]} 27. Bxd5+ {[%clk 0:00:16.3]} 27... Kh8 {[%clk
0:00:47.9]} 28. Be4 {[%clk 0:00:15.9]} 28... Qf7 {[%clk 0:00:35.9]} 29. Qc4
{[%clk 0:00:12.4]} 29... Qf6 {[%clk 0:00:33.9]} 30. Qe6 {[%clk 0:00:12.5]} 30...
Qg7 {[%clk 0:00:30.8]} 31. Bg2 {[%clk 0:00:08]} 31... Ng6 {[%clk 0:00:27.8]} 32.
Rce2 {[%clk 0:00:06.2]} 32... Re7 {[%clk 0:00:26.7]} 33. Qc4 {[%clk 0:00:06.1]}
33... Rc8 {[%clk 0:00:24.4]} 34. b4 {[%clk 0:00:06.5]} 34... a5 {[%clk
0:00:23.6]} 35. a3 {[%clk 0:00:06.9]} 35... axb4 {[%clk 0:00:23.4]} 36. axb4
{[%clk 0:00:07.8]} 36... Qf6 {[%clk 0:00:22.3]} 37. Qxg4 {[%clk 0:00:08]} 37...
Qb6 {[%clk 0:00:19.9]} 38. Qxc8+ {[%clk 0:00:07.8]} 38... Kg7 {[%clk 0:00:20.5]}
39. Qg4 {[%clk 0:00:05.8]} 39... Ra7 {[%clk 0:00:17.4]} 40. h4 {[%clk
0:00:05.7]} 40... Kf7 {[%clk 0:00:16.8]} 41. h5 {[%clk 0:00:06.2]} 41... Ne7
{[%clk 0:00:16.9]} 42. Qf3+ {[%clk 0:00:06.2]} 42... Ke8 {[%clk 0:00:16.4]} 43.
Qb3 {[%clk 0:00:06.4]} 43... Rc7 {[%clk 0:00:12.9]} 44. Rxe5 {[%clk 0:00:06.7]}
44... Bg7 {[%clk 0:00:11.8]} 45. Qg8+ {[%clk 0:00:06.4]} 45... Bf8 {[%clk
0:00:11.7]} 46. Rxe7+ {[%clk 0:00:05.9]} 46... Rxe7 {[%clk 0:00:10.3]} 47. Rxe7+
{[%clk 0:00:06.4]} 47... Kxe7 {[%clk 0:00:11.2]} 48. Qc4 {[%clk 0:00:05.5]}
48... Bg7 {[%clk 0:00:10.8]} 49. Qe4+ {[%clk 0:00:05.4]} 49... Kf8 {[%clk
0:00:10.7]} 50. Qb7 {[%clk 0:00:05.5]} 50... Qd6 {[%clk 0:00:10.4]} 51. Qc8+
{[%clk 0:00:04.5]} 51... Kf7 {[%clk 0:00:10.7]} 52. Qf5+ {[%clk 0:00:04.5]}
52... Ke7 {[%clk 0:00:10.7]} 53. Qxh7 {[%clk 0:00:04.5]} 53... Qd1+ {[%clk
0:00:07.9]} 54. Kh2 {[%clk 0:00:05.2]} 54... Qd4 {[%clk 0:00:08.8]} 55. Qe4+
{[%clk 0:00:05]} 55... Qxe4 {[%clk 0:00:08.5]} 56. Nxe4 {[%clk 0:00:05.9]} 56...
Bb2 {[%clk 0:00:09]} 57. b5 {[%clk 0:00:06.4]} 57... Ba3 {[%clk 0:00:09.9]} 58.
f3 {[%clk 0:00:06.9]} 58... Kd7 {[%clk 0:00:10.1]} 59. g4 {[%clk 0:00:07.8]}
59... Bf8 {[%clk 0:00:10.5]} 60. Kh3 {[%clk 0:00:08.7]} 60... Bg7 {[%clk
0:00:11]} 61. Kg3 {[%clk 0:00:09.5]} 61... Be5+ {[%clk 0:00:11]} 62. f4 {[%clk
0:00:10.4]} 62... Bc7 {[%clk 0:00:10.3]} 63. g5 {[%clk 0:00:11.3]} 63... Bb6
{[%clk 0:00:11.2]} 64. Kg4 {[%clk 0:00:12]} 64... Ke7 {[%clk 0:00:12.1]} 65. h6
{[%clk 0:00:12.7]} 65... Kf7 {[%clk 0:00:12.9]} 66. f5 {[%clk 0:00:13.4]} 66...
Bd4 {[%clk 0:00:12.9]} 67. g6+ {[%clk 0:00:14.3]} 67... Kf8 {[%clk 0:00:13.2]}
68. Ng5 {[%clk 0:00:13.8]} 68... Kg8 {[%clk 0:00:14.1]} 69. Ne6 {[%clk
0:00:13.9]} 69... Be5 {[%clk 0:00:13.7]} 70. h7+ {[%clk 0:00:14.3]} 70... Kh8
{[%clk 0:00:14.6]} 71. Nf4 {[%clk 0:00:13.7]} 71... Bd4 {[%clk 0:00:13.6]} 72.
b6 {[%clk 0:00:14.2]} 72... Bxb6 {[%clk 0:00:13.7]} 73. f6 {[%clk 0:00:14]}
73... Bd4 {[%clk 0:00:14]} 74. g7+ {[%clk 0:00:14.5]} 74... Kxh7 {[%clk
0:00:13.8]} 75. Be4+ {[%clk 0:00:15.1]} 75... Kg8 {[%clk 0:00:13.5]} 76. Bd5+
{[%clk 0:00:15.1]} 76... Kh7 {[%clk 0:00:13.4]} 77. g8=Q+ {[%clk 0:00:16]} 77...
Kh6 {[%clk 0:00:13.8]} 78. Qg6# {[%clk 0:00:16.9]} 1-0

[Event "*** Titled Tuesday Blitz"]
[Site "Chess.com"]
[Date "2021.02.16"]
[Round "6"]
[White "Arseniy_Nesterov"]
[Black "Mikhail_Golubev"]
[Result "0-1"]
[WhiteElo "2799"]
[BlackElo "2566"]
[TimeControl "180+1"]
[EndTime "11:09:43 PST"]
[Termination "Mikhail_Golubev won by resignation"]

1. d4 {[%clk 0:03:00.9]} 1... Nf6 {[%clk 0:02:59.3]} 2. c4 {[%clk 0:03:01]} 2...
g6 {[%clk 0:02:59.3]} 3. Nc3 {[%clk 0:03:00.9]} 3... Bg7 {[%clk 0:02:59.8]} 4.
e4 {[%clk 0:03:01.1]} 4... d6 {[%clk 0:02:59.7]} 5. Be2 {[%clk 0:03:01.6]} 5...
O-O {[%clk 0:02:59.6]} 6. Be3 {[%clk 0:03:02.3]} 6... Nc6 {[%clk 0:02:52.9]} 7.
d5 {[%clk 0:02:50.2]} 7... Ne5 {[%clk 0:02:52.7]} 8. h3 {[%clk 0:02:50]} 8... e6
{[%clk 0:02:41]} 9. Nf3 {[%clk 0:02:49.2]} 9... Nxf3+ {[%clk 0:02:18.5]} 10.
Bxf3 {[%clk 0:02:50.1]} 10... Re8 {[%clk 0:02:13.7]} 11. O-O {[%clk 0:02:47.9]}
11... Bd7 {[%clk 0:01:39.3]} 12. Rc1 {[%clk 0:02:44.1]} 12... exd5 {[%clk
0:01:27.2]} 13. cxd5 {[%clk 0:02:39.4]} 13... c6 {[%clk 0:01:25.9]} 14. Bf4
{[%clk 0:02:28.3]} 14... cxd5 {[%clk 0:01:18.4]} 15. exd5 {[%clk 0:02:29.2]}
15... Qb6 {[%clk 0:01:17.3]} 16. Qd2 {[%clk 0:02:14.9]} 16... Bf5 {[%clk
0:01:11.2]} 17. Rfe1 {[%clk 0:02:10.2]} 17... h5 {[%clk 0:01:05.5]} 18. Na4
{[%clk 0:01:38.8]} 18... Qa6 {[%clk 0:01:02.8]} 19. Qb4 {[%clk 0:01:36.9]} 19...
Bf8 {[%clk 0:00:21.8]} 20. Nc3 {[%clk 0:01:35.1]} 20... Qb6 {[%clk 0:00:19.5]}
21. Qxb6 {[%clk 0:01:22.4]} 21... axb6 {[%clk 0:00:20.4]} 22. a3 {[%clk
0:01:22.9]} 22... Bd7 {[%clk 0:00:16.8]} 23. Be2 {[%clk 0:01:12.4]} 23... Ne4
{[%clk 0:00:15.4]} 24. Nb5 {[%clk 0:00:53.6]} 24... Rac8 {[%clk 0:00:10.7]} 25.
Rxc8 {[%clk 0:00:44.8]} 25... Rxc8 {[%clk 0:00:10.2]} 26. f3 {[%clk 0:00:38.9]}
26... Bxb5 {[%clk 0:00:09.8]} 27. Bxb5 {[%clk 0:00:36.9]} 27... Nf6 {[%clk
0:00:10.1]} 28. Rd1 {[%clk 0:00:24.9]} 28... Rc5 {[%clk 0:00:09.2]} 29. a4
{[%clk 0:00:25.2]} 29... Nxd5 {[%clk 0:00:08.7]} 30. Bg3 {[%clk 0:00:13.8]}
30... Nc7 {[%clk 0:00:08.1]} 31. Bf2 {[%clk 0:00:11.9]} 31... Rc2 {[%clk
0:00:07.3]} 32. b3 {[%clk 0:00:08.8]} 32... Nxb5 {[%clk 0:00:07.3]} 33. axb5
{[%clk 0:00:09.7]} 33... Rc3 {[%clk 0:00:07.1]} 34. Bxb6 {[%clk 0:00:06.9]}
34... Rxb3 {[%clk 0:00:06.8]} 35. Rd5 {[%clk 0:00:07.5]} 35... Kg7 {[%clk
0:00:05.8]} 36. Bc7 {[%clk 0:00:07.2]} 36... Kf6 {[%clk 0:00:05.5]} 37. b6
{[%clk 0:00:05.4]} 37... Ke6 {[%clk 0:00:05.4]} 38. Rd1 {[%clk 0:00:05.1]} 38...
Kd7 {[%clk 0:00:05.5]} 39. Kh2 {[%clk 0:00:03.8]} 39... Kc6 {[%clk 0:00:04.6]}
40. Rc1+ {[%clk 0:00:03.5]} 40... Kd7 {[%clk 0:00:05]} 41. Rd1 {[%clk 0:00:04]}
41... Rb5 {[%clk 0:00:05.1]} 42. Kg3 {[%clk 0:00:04]} 42... Be7 {[%clk
0:00:05.2]} 43. Kf4 {[%clk 0:00:03.4]} 43... Rb4+ {[%clk 0:00:05.4]} 44. Kg3
{[%clk 0:00:03.9]} 44... Rb5 {[%clk 0:00:06]} 45. Kf4 {[%clk 0:00:04]} 45... d5
{[%clk 0:00:06.3]} 46. Ke5 {[%clk 0:00:02]} 46... Kc6 {[%clk 0:00:06.5]} 47.
Rc1+ {[%clk 0:00:01.6]} 47... Rc5 {[%clk 0:00:06.9]} 48. Rd1 {[%clk 0:00:01.6]}
48... d4+ {[%clk 0:00:06.3]} 49. Ke4 {[%clk 0:00:02]} 49... f5+ {[%clk 0:00:06]}
50. Kd3 {[%clk 0:00:02.6]} 50... Kd5 {[%clk 0:00:06.3]} 51. Re1 {[%clk
0:00:01.5]} 51... Rc3+ {[%clk 0:00:06.1]} 52. Kd2 {[%clk 0:00:01.9]} 52... Bg5+
{[%clk 0:00:06.4]} 53. f4 {[%clk 0:00:02.1]} 53... Bh4 {[%clk 0:00:06.7]} 54.
Re5+ {[%clk 0:00:01.9]} 54... Kc4 {[%clk 0:00:06.7]} 55. Re8 {[%clk 0:00:02.5]}
55... Ra3 {[%clk 0:00:06.7]} 56. Rg8 {[%clk 0:00:01.8]} 56... Ra2+ {[%clk
0:00:06.9]} 57. Kc1 {[%clk 0:00:02.4]} 57... d3 {[%clk 0:00:06.8]} 58. Rxg6
{[%clk 0:00:02.9]} 58... Be1 {[%clk 0:00:04.4]} 59. Be5 {[%clk 0:00:01.8]} 59...
Bc3 {[%clk 0:00:03.8]} 60. Bxc3 {[%clk 0:00:01.4]} 60... Kxc3 {[%clk 0:00:04.1]}
61. Kb1 {[%clk 0:00:02.3]} 61... Rb2+ {[%clk 0:00:02.8]} 62. Ka1 {[%clk
0:00:02]} 62... Rf2 {[%clk 0:00:03.3]} 63. Rd6 {[%clk 0:00:02]} 63... d2 {[%clk
0:00:03.5]} 64. Kb1 {[%clk 0:00:01.6]} 64... Rf1+ {[%clk 0:00:04.1]} 65. Ka2
{[%clk 0:00:02.2]} 65... d1=Q {[%clk 0:00:04.2]} 0-1

[Event "*** Titled Tuesday Blitz"]
[Site "Chess.com"]
[Date "2021.02.16"]
[Round "6"]
[White "ChelsieMonica"]
[Black "Artyom_ChessMate"]
[Result "0-1"]
[WhiteElo "2335"]
[BlackElo "2556"]
[TimeControl "180+1"]
[EndTime "11:09:44 PST"]
[Termination "Artyom_ChessMate won on time"]

1. c4 {[%clk 0:02:57.5]} 1... e6 {[%clk 0:02:58]} 2. Nc3 {[%clk 0:02:56.7]} 2...
d5 {[%clk 0:02:58.9]} 3. cxd5 {[%clk 0:02:57.6]} 3... exd5 {[%clk 0:02:59.8]} 4.
Nf3 {[%clk 0:02:58.1]} 4... Nf6 {[%clk 0:03:00.2]} 5. g3 {[%clk 0:02:58.1]} 5...
c6 {[%clk 0:03:01.1]} 6. d3 {[%clk 0:02:57.9]} 6... Be7 {[%clk 0:03:01.5]} 7.
Bg2 {[%clk 0:02:58.4]} 7... O-O {[%clk 0:03:02.1]} 8. O-O {[%clk 0:02:58.6]}
8... Bf5 {[%clk 0:03:02.3]} 9. h3 {[%clk 0:02:58.2]} 9... h6 {[%clk 0:03:02.4]}
10. Re1 {[%clk 0:02:56.4]} 10... Bh7 {[%clk 0:03:00.8]} 11. Bf4 {[%clk
0:02:55.9]} 11... Nbd7 {[%clk 0:03:00.5]} 12. Rc1 {[%clk 0:02:49.2]} 12... Qb6
{[%clk 0:02:59.4]} 13. Qd2 {[%clk 0:02:37.2]} 13... Rfe8 {[%clk 0:02:36.9]} 14.
Be3 {[%clk 0:02:00.7]} 14... Qa5 {[%clk 0:02:33.4]} 15. Nd4 {[%clk 0:01:57.9]}
15... Qd8 {[%clk 0:02:16.7]} 16. Nf3 {[%clk 0:01:48.5]} 16... c5 {[%clk
0:02:07.3]} 17. Bxh6 {[%clk 0:01:32.8]} 17... gxh6 {[%clk 0:02:04.4]} 18. Qxh6
{[%clk 0:01:33.7]} 18... Bf8 {[%clk 0:02:02.8]} 19. Qg5+ {[%clk 0:01:33.6]}
19... Bg7 {[%clk 0:02:03]} 20. Nxd5 {[%clk 0:01:30]} 20... Nxd5 {[%clk
0:02:03.9]} 21. Qxd5 {[%clk 0:01:28.9]} 21... Nb6 {[%clk 0:01:37.2]} 22. Qxc5
{[%clk 0:01:25.8]} 22... Bxb2 {[%clk 0:01:32.5]} 23. Rb1 {[%clk 0:01:17.3]}
23... Bg7 {[%clk 0:01:32.3]} 24. Qa3 {[%clk 0:01:10.8]} 24... Bg6 {[%clk
0:01:28.5]} 25. Nh4 {[%clk 0:01:06.7]} 25... Bf8 {[%clk 0:01:12.4]} 26. Qa5
{[%clk 0:00:52]} 26... Nd7 {[%clk 0:01:05.7]} 27. Qd5 {[%clk 0:00:39.9]} 27...
Nf6 {[%clk 0:00:42.4]} 28. Qxb7 {[%clk 0:00:37.8]} 28... Rb8 {[%clk 0:00:40.1]}
29. Qxa7 {[%clk 0:00:29.1]} 29... Rxb1 {[%clk 0:00:38.8]} 30. Rxb1 {[%clk
0:00:30]} 30... Rxe2 {[%clk 0:00:31]} 31. Nxg6 {[%clk 0:00:29]} 31... fxg6
{[%clk 0:00:31.9]} 32. d4 {[%clk 0:00:19.2]} 32... Rd2 {[%clk 0:00:25.5]} 33.
Rb7 {[%clk 0:00:13.7]} 33... Qxd4 {[%clk 0:00:22.9]} 34. Qxd4 {[%clk 0:00:13]}
34... Rxd4 {[%clk 0:00:23.8]} 35. Rb6 {[%clk 0:00:12.6]} 35... Kg7 {[%clk
0:00:22.3]} 36. g4 {[%clk 0:00:12.8]} 36... Rd1+ {[%clk 0:00:22]} 37. Kh2 {[%clk
0:00:11]} 37... Rd2 {[%clk 0:00:22.9]} 38. Kg3 {[%clk 0:00:10.7]} 38... Bc5
{[%clk 0:00:21.4]} 39. Rb7+ {[%clk 0:00:10]} 39... Kg8 {[%clk 0:00:21.8]} 40. f3
{[%clk 0:00:10]} 40... g5 {[%clk 0:00:19]} 41. f4 {[%clk 0:00:07.9]} 41... Bd6
{[%clk 0:00:18.7]} 42. Kf3 {[%clk 0:00:06.2]} 42... Bxf4 {[%clk 0:00:18.5]} 43.
a4 {[%clk 0:00:05.3]} 43... Nd5 {[%clk 0:00:12.4]} 44. a5 {[%clk 0:00:05.3]}
44... Ra2 {[%clk 0:00:10.7]} 45. Rb5 {[%clk 0:00:03.2]} 45... Nc3 {[%clk
0:00:10.1]} 46. Rb8+ {[%clk 0:00:03.1]} 46... Kf7 {[%clk 0:00:09.9]} 47. Ra8
{[%clk 0:00:04]} 47... Ra3 {[%clk 0:00:09.7]} 48. Kf2 {[%clk 0:00:04]} 48... Kf6
{[%clk 0:00:09.2]} 49. Bc6 {[%clk 0:00:03.8]} 49... Ke5 {[%clk 0:00:09.2]} 50.
a6 {[%clk 0:00:03.7]} 50... Ra2+ {[%clk 0:00:08.4]} 51. Kf3 {[%clk 0:00:03.3]}
51... Ra3 {[%clk 0:00:08.8]} 52. Bb7 {[%clk 0:00:03.6]} 52... Nd5+ {[%clk
0:00:07.6]} 53. Ke2 {[%clk 0:00:04.5]} 53... Ra2+ {[%clk 0:00:07.1]} 54. Kd3
{[%clk 0:00:04.4]} 54... Ra3+ {[%clk 0:00:07]} 55. Kc4 {[%clk 0:00:04.2]} 55...
Ne3+ {[%clk 0:00:06.1]} 56. Kb5 {[%clk 0:00:04.2]} 56... Kd4 {[%clk 0:00:05.5]}
57. Kb6 {[%clk 0:00:04.6]} 57... Bd6 {[%clk 0:00:05.1]} 58. Rd8 {[%clk
0:00:04.7]} 58... Ke5 {[%clk 0:00:05.3]} 59. Kc6 {[%clk 0:00:05.2]} 59... Rc3+
{[%clk 0:00:04.3]} 60. Kd7 {[%clk 0:00:05.3]} 60... Bc5 {[%clk 0:00:04.8]} 61.
Re8+ {[%clk 0:00:04.7]} 61... Kf4 {[%clk 0:00:04.6]} 62. Re4+ {[%clk 0:00:05]}
62... Kg3 {[%clk 0:00:03.7]} 63. Re5 {[%clk 0:00:03.1]} 63... Kxh3 {[%clk
0:00:03.1]} 0-1

[Event "*** Titled Tuesday Blitz"]
[Site "Chess.com"]
[Date "2021.02.16"]
[Round "6"]
[White "lilleper1"]
[Black "elextranjero00"]
[Result "1-0"]
[WhiteElo "2842"]
[BlackElo "2629"]
[TimeControl "180+1"]
[EndTime "11:09:56 PST"]
[Termination "lilleper1 won by resignation"]

1. e4 {[%clk 0:03:00.9]} 1... c6 {[%clk 0:02:59.5]} 2. d4 {[%clk 0:02:59.6]}
2... d5 {[%clk 0:02:59.7]} 3. Nc3 {[%clk 0:03:00.1]} 3... dxe4 {[%clk
0:02:58.7]} 4. Nxe4 {[%clk 0:03:01]} 4... Nf6 {[%clk 0:02:59.2]} 5. Nxf6+ {[%clk
0:02:59.9]} 5... exf6 {[%clk 0:03:00.1]} 6. c3 {[%clk 0:03:00.1]} 6... Bd6
{[%clk 0:02:59.8]} 7. Bd3 {[%clk 0:03:00.3]} 7... O-O {[%clk 0:02:59.6]} 8. Qc2
{[%clk 0:02:59.6]} 8... Re8+ {[%clk 0:02:59.6]} 9. Ne2 {[%clk 0:02:59.4]} 9...
h5 {[%clk 0:03:00.2]} 10. Be3 {[%clk 0:02:55.9]} 10... Nd7 {[%clk 0:02:59.5]}
11. Ng3 {[%clk 0:02:50.3]} 11... Nb6 {[%clk 0:02:46.3]} 12. O-O-O {[%clk
0:02:44]} 12... Nd5 {[%clk 0:02:32.3]} 13. Bd2 {[%clk 0:02:44.2]} 13... Nf4
{[%clk 0:02:25.3]} 14. Bxf4 {[%clk 0:02:41.1]} 14... Bxf4+ {[%clk 0:02:25.3]}
15. Kb1 {[%clk 0:02:41.7]} 15... h4 {[%clk 0:02:19.8]} 16. Nf5 {[%clk
0:02:23.8]} 16... Bxf5 {[%clk 0:01:53.8]} 17. Bxf5 {[%clk 0:02:24.7]} 17... Qd5
{[%clk 0:01:50.3]} 18. f3 {[%clk 0:02:09.1]} 18... Re7 {[%clk 0:01:34.2]} 19. g3
{[%clk 0:02:08.5]} 19... Bg5 {[%clk 0:01:26.8]} 20. gxh4 {[%clk 0:02:06.3]}
20... Bh6 {[%clk 0:01:24.7]} 21. Rhg1 {[%clk 0:02:03.6]} 21... Rae8 {[%clk
0:01:23.4]} 22. Be4 {[%clk 0:02:03.5]} 22... Qd6 {[%clk 0:01:17.9]} 23. Rg2
{[%clk 0:01:59.2]} 23... Qf4 {[%clk 0:01:12.9]} 24. Rg4 {[%clk 0:01:56.4]} 24...
Qe3 {[%clk 0:01:06.5]} 25. Qg2 {[%clk 0:01:38.2]} 25... f5 {[%clk 0:00:40.9]}
26. Bxf5 {[%clk 0:01:38.1]} 26... Qe2 {[%clk 0:00:41.3]} 27. Bc2 {[%clk
0:01:37.5]} 27... Qxg2 {[%clk 0:00:37.8]} 28. Rxg2 {[%clk 0:01:38.4]} 28... Re2
{[%clk 0:00:37.6]} 29. Rxe2 {[%clk 0:01:20.3]} 29... Rxe2 {[%clk 0:00:38.5]} 30.
Bb3 {[%clk 0:01:20.2]} 30... Rxh2 {[%clk 0:00:35.5]} 31. d5 {[%clk 0:01:19.8]}
31... cxd5 {[%clk 0:00:34.5]} 32. Rxd5 {[%clk 0:01:16.7]} 32... Rf2 {[%clk
0:00:20.5]} 33. Rd8+ {[%clk 0:01:12.7]} 33... Kh7 {[%clk 0:00:20.2]} 34. Bxf7
{[%clk 0:01:12.4]} 34... Rxf3 {[%clk 0:00:15.7]} 35. Bd5 {[%clk 0:01:11.4]}
35... Rf1+ {[%clk 0:00:15]} 36. Kc2 {[%clk 0:01:11.5]} 36... b6 {[%clk
0:00:08.4]} 37. Be4+ {[%clk 0:01:09.3]} 37... g6 {[%clk 0:00:08.7]} 38. h5
{[%clk 0:01:09.9]} 38... Kg7 {[%clk 0:00:08.3]} 39. Bxg6 {[%clk 0:01:06.9]}
39... Rf2+ {[%clk 0:00:08.6]} 40. Kb3 {[%clk 0:01:06.7]} 40... Bc1 {[%clk
0:00:08.7]} 41. Rd7+ {[%clk 0:01:06.1]} 41... Kh6 {[%clk 0:00:08.9]} 42. Rh7+
{[%clk 0:01:03.6]} 42... Kg5 {[%clk 0:00:09.3]} 43. Bc2 {[%clk 0:01:04.2]} 43...
a5 {[%clk 0:00:07.2]} 44. a4 {[%clk 0:01:03.2]} 44... b5 {[%clk 0:00:07.1]} 45.
axb5 {[%clk 0:00:37.2]} 45... a4+ {[%clk 0:00:07.4]} 46. Kxa4 {[%clk 0:00:37.6]}
46... Rxc2 {[%clk 0:00:08]} 47. b6 {[%clk 0:00:34.6]} 47... Rxb2 {[%clk
0:00:08.1]} 48. b7 {[%clk 0:00:34.7]} 48... Bf4 {[%clk 0:00:08.1]} 49. c4 {[%clk
0:00:32.8]} 49... Bd6 {[%clk 0:00:06.4]} 50. h6 {[%clk 0:00:29.3]} 50... Rb4+
{[%clk 0:00:05.5]} 51. Ka5 {[%clk 0:00:29.6]} 51... Rxc4 {[%clk 0:00:05.5]} 52.
Rd7 {[%clk 0:00:30.1]} 52... Bh2 {[%clk 0:00:03.3]} 53. h7 {[%clk 0:00:29.1]}
53... Rh4 {[%clk 0:00:03.4]} 54. Rd2 {[%clk 0:00:18.4]} 54... Kg6 {[%clk
0:00:03.6]} 55. Rxh2 {[%clk 0:00:17.2]} 55... Rxh2 {[%clk 0:00:03]} 56. b8=Q
{[%clk 0:00:17.4]} 56... Rxh7 {[%clk 0:00:02.6]} 57. Qd6+ {[%clk 0:00:17.5]}
57... Kg7 {[%clk 0:00:02.9]} 58. Qg3+ {[%clk 0:00:17.8]} 58... Kh8 {[%clk
0:00:03.4]} 59. Kb5 {[%clk 0:00:18.3]} 59... Rg7 {[%clk 0:00:04.3]} 60. Qh4+
{[%clk 0:00:18.5]} 60... Kg8 {[%clk 0:00:05.1]} 61. Qf6 {[%clk 0:00:18.2]} 61...
Rf7 {[%clk 0:00:05.6]} 62. Qe6 {[%clk 0:00:18.4]} 62... Kf8 {[%clk 0:00:06.1]}
63. Kc5 {[%clk 0:00:18.9]} 63... Re7 {[%clk 0:00:06.5]} 64. Qc8+ {[%clk
0:00:18.7]} 64... Kf7 {[%clk 0:00:06.8]} 65. Qf5+ {[%clk 0:00:18.2]} 65... Kg7
{[%clk 0:00:05.8]} 66. Kd6 {[%clk 0:00:18.2]} 66... Rf7 {[%clk 0:00:06.3]} 67.
Qg5+ {[%clk 0:00:18.6]} 67... Kf8 {[%clk 0:00:05]} 68. Ke6 {[%clk 0:00:18.4]}
68... Rh7 {[%clk 0:00:02.9]} 69. Qd8+ {[%clk 0:00:16.1]} 69... Kg7 {[%clk
0:00:03.2]} 70. Qf6+ {[%clk 0:00:14.7]} 70... Kg8 {[%clk 0:00:03.4]} 71. Qg6+
{[%clk 0:00:14.7]} 71... Rg7 {[%clk 0:00:03.5]} 72. Qe8+ {[%clk 0:00:14.5]}
72... Kh7 {[%clk 0:00:04.2]} 73. Kf6 {[%clk 0:00:15]} 73... Rg1 {[%clk
0:00:04.4]} 74. Qe4+ {[%clk 0:00:12.3]} 74... Kg8 {[%clk 0:00:04.6]} 75. Qa8+
{[%clk 0:00:12.3]} 1-0